Workbook

Sheet March
B3: Table1 | G3: PivotTable1
B4: DDate | C4: ChargeN | D4: Resource | E4: Amt | G4: Sum of Amt | H4: Resource
B5: =RANDBETWEEN(DATEVALUE("Mar 1, 2010"),DATEVALUE("Mar 31, 2010")) -> 2010-03-02 | C5: =INDEX(Table3[ChgN],RANDBETWEEN(1,5)) -> D6128 | D5: =INDEX(Table3[RSrc],RANDBETWEEN(1,5)) -> L57 | E5: =RANDBETWEEN(1000,9999)/100 -> 26.43 | G5: ChargeN | H5: L57 | I5: J64 | J5: J78 | K5: G30 | L5: B59 | M5: Grand Total
B6: 2010-03-30 | C6: =INDEX(Table3[ChgN],RANDBETWEEN(1,5)) -> D6128 | D6: =INDEX(Table3[RSrc],RANDBETWEEN(1,5)) -> J78 | E6: 64.65 | G6: V4541 | H6: 0 | I6: 186.36 | J6: 53.44 | K6: 204.65 | L6: 222.68 | M6: 667.13
B7: 2010-03-29 | C7: =INDEX(Table3[ChgN],RANDBETWEEN(1,5)) -> W7329 | D7: =INDEX(Table3[RSrc],RANDBETWEEN(1,5)) -> G30 | E7: 86.23 | G7: W7329 | H7: 134.56 | I7: 76 | J7: 75.79 | K7: 0 | L7: 94.63 | M7: 380.98
B8: 2010-03-30 | C8: =INDEX(Table3[ChgN],RANDBETWEEN(1,5)) -> V9973 | D8: =INDEX(Table3[RSrc],RANDBETWEEN(1,5)) -> L57 | E8: 74.42 | G8: D6128 | H8: 176.48 | I8: 35.02 | J8: 0 | K8: 83.68 | L8: 0 | M8: 295.18
B9: 2010-03-28 | C9: =INDEX(Table3[ChgN],RANDBETWEEN(1,5)) -> V9973 | D9: =INDEX(Table3[RSrc],RANDBETWEEN(1,5)) -> J64 | E9: 72.97 | G9: P6159 | H9: 0 | I9: 143.56 | J9: 164.71 | K9: 212.62 | L9: 131.69 | M9: 652.58
B10: 2010-03-17 | C10: =INDEX(Table3[ChgN],RANDBETWEEN(1,5)) -> P6159 | D10: =INDEX(Table3[RSrc],RANDBETWEEN(1,5)) -> G30 | E10: 24.94 | G10: V9973 | H10: 13.27 | I10: 271.43 | J10: 186.17 | K10: 95.61 | L10: 63.51 | M10: 629.99
B11: 2010-03-11 | C11: =INDEX(Table3[ChgN],RANDBETWEEN(1,5)) -> V9973 | D11: =INDEX(Table3[RSrc],RANDBETWEEN(1,5)) -> J78 | E11: 85.46 | G11: Grand Total | H11: 324.31 | I11: 712.37 | J11: 480.11 | K11: 596.56 | L11: 512.51 | M11: 2625.86
B12: 2010-03-07 | C12: =INDEX(Table3[ChgN],RANDBETWEEN(1,5)) -> W7329 | D12: =INDEX(Table3[RSrc],RANDBETWEEN(1,5)) -> L57 | E12: 38.14
B13: 2010-03-30 | C13: =INDEX(Table3[ChgN],RANDBETWEEN(1,5)) -> V9973 | D13: =INDEX(Table3[RSrc],RANDBETWEEN(1,5)) -> J64 | E13: 31.76
B14: 2010-03-22 | C14: =INDEX(Table3[ChgN],RANDBETWEEN(1,5)) -> W7329 | D14: =INDEX(Table3[RSrc],RANDBETWEEN(1,5)) -> B59 | E14: 99.97
B15: 2010-03-30 | C15: =INDEX(Table3[ChgN],RANDBETWEEN(1,5)) -> V9973 | D15: =INDEX(Table3[RSrc],RANDBETWEEN(1,5)) -> J64 | E15: 72.73
B16: 2010-03-26 | C16: =INDEX(Table3[ChgN],RANDBETWEEN(1,5)) -> D6128 | D16: =INDEX(Table3[RSrc],RANDBETWEEN(1,5)) -> B59 | E16: 63.58
B17: 2010-03-07 | C17: =INDEX(Table3[ChgN],RANDBETWEEN(1,5)) -> W7329 | D17: =INDEX(Table3[RSrc],RANDBETWEEN(1,5)) -> B59 | E17: 17.93
B18: 2010-03-15 | C18: =INDEX(Table3[ChgN],RANDBETWEEN(1,5)) -> V4541 | D18: =INDEX(Table3[RSrc],RANDBETWEEN(1,5)) -> G30 | E18: 95.31
B19: 2010-03-02 | C19: =INDEX(Table3[ChgN],RANDBETWEEN(1,5)) -> P6159 | D19: =INDEX(Table3[RSrc],RANDBETWEEN(1,5)) -> J64 | E19: 12.92
B20: 2010-03-27 | C20: =INDEX(Table3[ChgN],RANDBETWEEN(1,5)) -> V9973 | D20: =INDEX(Table3[RSrc],RANDBETWEEN(1,5)) -> L57 | E20: 34.61
B21: 2010-03-22 | C21: =INDEX(Table3[ChgN],RANDBETWEEN(1,5)) -> V9973 | D21: =INDEX(Table3[RSrc],RANDBETWEEN(1,5)) -> J64 | E21: 31.92
B22: 2010-03-24 | C22: =INDEX(Table3[ChgN],RANDBETWEEN(1,5)) -> W7329 | D22: =INDEX(Table3[RSrc],RANDBETWEEN(1,5)) -> J64 | E22: 72.84
B23: 2010-03-28 | C23: =INDEX(Table3[ChgN],RANDBETWEEN(1,5)) -> P6159 | D23: =INDEX(Table3[RSrc],RANDBETWEEN(1,5)) -> B59 | E23: 98.77
B24: 2010-03-28 | C24: =INDEX(Table3[ChgN],RANDBETWEEN(1,5)) -> V4541 | D24: =INDEX(Table3[RSrc],RANDBETWEEN(1,5)) -> J78 | E24: 80.3
B25: 2010-03-31 | C25: =INDEX(Table3[ChgN],RANDBETWEEN(1,5)) -> P6159 | D25: =INDEX(Table3[RSrc],RANDBETWEEN(1,5)) -> G30 | E25: 81.11
B26: 2010-03-24 | C26: =INDEX(Table3[ChgN],RANDBETWEEN(1,5)) -> P6159 | D26: =INDEX(Table3[RSrc],RANDBETWEEN(1,5)) -> J78 | E26: 84.01
B27: 2010-03-07 | C27: =INDEX(Table3[ChgN],RANDBETWEEN(1,5)) -> W7329 | D27: =INDEX(Table3[RSrc],RANDBETWEEN(1,5)) -> J78 | E27: 19.31
B28: 2010-03-08 | C28: =INDEX(Table3[ChgN],RANDBETWEEN(1,5)) -> P6159 | D28: =INDEX(Table3[RSrc],RANDBETWEEN(1,5)) -> B59 | E28: 49.47
B29: 2010-03-08 | C29: =INDEX(Table3[ChgN],RANDBETWEEN(1,5)) -> V4541 | D29: =INDEX(Table3[RSrc],RANDBETWEEN(1,5)) -> J64 | E29: 63.18
B30: 2010-03-16 | C30: =INDEX(Table3[ChgN],RANDBETWEEN(1,5)) -> W7329 | D30: =INDEX(Table3[RSrc],RANDBETWEEN(1,5)) -> J78 | E30: 87.2
B31: 2010-03-29 | C31: =INDEX(Table3[ChgN],RANDBETWEEN(1,5)) -> D6128 | D31: =INDEX(Table3[RSrc],RANDBETWEEN(1,5)) -> J78 | E31: 60.63
B32: 2010-03-18 | C32: =INDEX(Table3[ChgN],RANDBETWEEN(1,5)) -> P6159 | D32: =INDEX(Table3[RSrc],RANDBETWEEN(1,5)) -> J64 | E32: 36.16
B33: 2010-03-05 | C33: =INDEX(Table3[ChgN],RANDBETWEEN(1,5)) -> P6159 | D33: =INDEX(Table3[RSrc],RANDBETWEEN(1,5)) -> B59 | E33: 30.8
B34: 2010-03-29 | C34: =INDEX(Table3[ChgN],RANDBETWEEN(1,5)) -> W7329 | D34: =INDEX(Table3[RSrc],RANDBETWEEN(1,5)) -> G30 | E34: 22.5
B35: 2010-03-27 | C35: =INDEX(Table3[ChgN],RANDBETWEEN(1,5)) -> W7329 | D35: =INDEX(Table3[RSrc],RANDBETWEEN(1,5)) -> B59 | E35: 22.83
B36: 2010-03-20 | C36: =INDEX(Table3[ChgN],RANDBETWEEN(1,5)) -> P6159 | D36: =INDEX(Table3[RSrc],RANDBETWEEN(1,5)) -> J64 | E36: 52.83
B37: 2010-03-03 | C37: =INDEX(Table3[ChgN],RANDBETWEEN(1,5)) -> W7329 | D37: =INDEX(Table3[RSrc],RANDBETWEEN(1,5)) -> G30 | E37: 27.68
B38: 2010-03-30 | C38: =INDEX(Table3[ChgN],RANDBETWEEN(1,5)) -> V4541 | D38: =INDEX(Table3[RSrc],RANDBETWEEN(1,5)) -> J78 | E38: 99.42
B39: 2010-03-05 | C39: =INDEX(Table3[ChgN],RANDBETWEEN(1,5)) -> V9973 | D39: =INDEX(Table3[RSrc],RANDBETWEEN(1,5)) -> B59 | E39: 86.82
B40: 2010-03-17 | C40: =INDEX(Table3[ChgN],RANDBETWEEN(1,5)) -> V4541 | D40: =INDEX(Table3[RSrc],RANDBETWEEN(1,5)) -> J64 | E40: 31.68
B41: 2010-03-19 | C41: =INDEX(Table3[ChgN],RANDBETWEEN(1,5)) -> V9973 | D41: =INDEX(Table3[RSrc],RANDBETWEEN(1,5)) -> J78 | E41: 68.19
B42: 2010-03-23 | C42: =INDEX(Table3[ChgN],RANDBETWEEN(1,5)) -> P6159 | D42: =INDEX(Table3[RSrc],RANDBETWEEN(1,5)) -> L57 | E42: 43.9
B43: 2010-03-19 | C43: =INDEX(Table3[ChgN],RANDBETWEEN(1,5)) -> D6128 | D43: =INDEX(Table3[RSrc],RANDBETWEEN(1,5)) -> G30 | E43: 81.94
B44: 2010-03-07 | C44: =INDEX(Table3[ChgN],RANDBETWEEN(1,5)) -> P6159 | D44: =INDEX(Table3[RSrc],RANDBETWEEN(1,5)) -> B59 | E44: 25.47
B45: 2010-03-10 | C45: =INDEX(Table3[ChgN],RANDBETWEEN(1,5)) -> V4541 | D45: =INDEX(Table3[RSrc],RANDBETWEEN(1,5)) -> L57 | E45: 23.06
B46: 2010-03-20 | C46: =INDEX(Table3[ChgN],RANDBETWEEN(1,5)) -> V9973 | D46: =INDEX(Table3[RSrc],RANDBETWEEN(1,5)) -> J64 | E46: 80.85
B47: 2010-03-08 | C47: =INDEX(Table3[ChgN],RANDBETWEEN(1,5)) -> V9973 | D47: =INDEX(Table3[RSrc],RANDBETWEEN(1,5)) -> J64 | E47: 23.3
B48: 2010-03-16 | C48: =INDEX(Table3[ChgN],RANDBETWEEN(1,5)) -> W7329 | D48: =INDEX(Table3[RSrc],RANDBETWEEN(1,5)) -> B59 | E48: 40.46
B49: 2010-03-14 | C49: =INDEX(Table3[ChgN],RANDBETWEEN(1,5)) -> P6159 | D49: =INDEX(Table3[RSrc],RANDBETWEEN(1,5)) -> G30 | E49: 55.08
B50: 2010-03-09 | C50: =INDEX(Table3[ChgN],RANDBETWEEN(1,5)) -> W7329 | D50: =INDEX(Table3[RSrc],RANDBETWEEN(1,5)) -> J78 | E50: 42.02
B51: 2010-03-10 | C51: =INDEX(Table3[ChgN],RANDBETWEEN(1,5)) -> D6128 | D51: =INDEX(Table3[RSrc],RANDBETWEEN(1,5)) -> J78 | E51: 25.65
B52: 2010-03-19 | C52: =INDEX(Table3[ChgN],RANDBETWEEN(1,5)) -> D6128 | D52: =INDEX(Table3[RSrc],RANDBETWEEN(1,5)) -> J64 | E52: 49.51

Sheet April
B3: Table2 | G3: PivotTable2 | P3: Table3
B4: DDate | C4: ChargeN | D4: Resource | E4: Amt | G4: Sum of Amt | H4: Resource | P4: ChgN | Q4: RSrc
B5: =RANDBETWEEN(DATEVALUE("Apr 1, 2010"),DATEVALUE("Apr 30, 2010")) -> 2010-04-25 | C5: =INDEX(Table3[ChgN],RANDBETWEEN(1,5)) -> V4541 | D5: =INDEX(Table3[RSrc],RANDBETWEEN(1,5)) -> B59 | E5: =RANDBETWEEN(1000,9999)/100 -> 98.67 | G5: ChargeN | H5: L57 | I5: J64 | J5: J78 | K5: G30 | L5: B59 | M5: Grand Total | P5: V9973 | Q5: B59
B6: 2010-04-11 | C6: =INDEX(Table3[ChgN],RANDBETWEEN(1,5)) -> V4541 | D6: =INDEX(Table3[RSrc],RANDBETWEEN(1,5)) -> L57 | E6: 54.65 | G6: V4541 | H6: 108.38 | I6: 88.66 | J6: 194.02 | K6: 92.48 | L6: 119.94 | M6: 603.48 | P6: W7329 | Q6: J64
B7: 2010-04-17 | C7: =INDEX(Table3[ChgN],RANDBETWEEN(1,5)) -> W7329 | D7: =INDEX(Table3[RSrc],RANDBETWEEN(1,5)) -> G30 | E7: 11.41 | G7: W7329 | H7: 116.73 | I7: 84.67 | J7: 91.61 | K7: 49.09 | L7: 48.81 | M7: 390.91 | P7: V4541 | Q7: G30
B8: 2010-04-11 | C8: =INDEX(Table3[ChgN],RANDBETWEEN(1,5)) -> V9973 | D8: =INDEX(Table3[RSrc],RANDBETWEEN(1,5)) -> L57 | E8: 58.63 | G8: D6128 | H8: 287.9 | I8: 0 | J8: 144.57 | K8: 19.19 | L8: 12.33 | M8: 463.99 | P8: P6159 | Q8: J78
B9: 2010-04-03 | C9: =INDEX(Table3[ChgN],RANDBETWEEN(1,5)) -> P6159 | D9: =INDEX(Table3[RSrc],RANDBETWEEN(1,5)) -> L57 | E9: 93.55 | G9: P6159 | H9: 43.38 | I9: 220.65 | J9: 0 | K9: 211.61 | L9: 147.33 | M9: 622.97 | P9: D6128 | Q9: L57
B10: 2010-04-02 | C10: =INDEX(Table3[ChgN],RANDBETWEEN(1,5)) -> V9973 | D10: =INDEX(Table3[RSrc],RANDBETWEEN(1,5)) -> B59 | E10: 38.79 | G10: V9973 | H10: 92.3 | I10: 306.48 | J10: 38.4 | K10: 0 | L10: 109.37 | M10: 546.55
B11: 2010-04-06 | C11: =INDEX(Table3[ChgN],RANDBETWEEN(1,5)) -> P6159 | D11: =INDEX(Table3[RSrc],RANDBETWEEN(1,5)) -> J64 | E11: 99.2 | G11: Grand Total | H11: 648.69 | I11: 700.46 | J11: 468.6 | K11: 372.37 | L11: 437.78 | M11: 2627.9
B12: 2010-04-24 | C12: =INDEX(Table3[ChgN],RANDBETWEEN(1,5)) -> P6159 | D12: =INDEX(Table3[RSrc],RANDBETWEEN(1,5)) -> B59 | E12: 40.94
B13: 2010-04-26 | C13: =INDEX(Table3[ChgN],RANDBETWEEN(1,5)) -> V9973 | D13: =INDEX(Table3[RSrc],RANDBETWEEN(1,5)) -> B59 | E13: 97.04
B14: 2010-04-10 | C14: =INDEX(Table3[ChgN],RANDBETWEEN(1,5)) -> V9973 | D14: =INDEX(Table3[RSrc],RANDBETWEEN(1,5)) -> G30 | E14: 26.5
B15: 2010-04-23 | C15: =INDEX(Table3[ChgN],RANDBETWEEN(1,5)) -> V4541 | D15: =INDEX(Table3[RSrc],RANDBETWEEN(1,5)) -> L57 | E15: 47.85
B16: 2010-04-17 | C16: =INDEX(Table3[ChgN],RANDBETWEEN(1,5)) -> V4541 | D16: =INDEX(Table3[RSrc],RANDBETWEEN(1,5)) -> L57 | E16: 21.24
B17: 2010-04-11 | C17: =INDEX(Table3[ChgN],RANDBETWEEN(1,5)) -> W7329 | D17: =INDEX(Table3[RSrc],RANDBETWEEN(1,5)) -> L57 | E17: 50.28
B18: 2010-04-23 | C18: =INDEX(Table3[ChgN],RANDBETWEEN(1,5)) -> V9973 | D18: =INDEX(Table3[RSrc],RANDBETWEEN(1,5)) -> B59 | E18: 87.86
B19: 2010-04-30 | C19: =INDEX(Table3[ChgN],RANDBETWEEN(1,5)) -> D6128 | D19: =INDEX(Table3[RSrc],RANDBETWEEN(1,5)) -> B59 | E19: 76.71
B20: 2010-04-02 | C20: =INDEX(Table3[ChgN],RANDBETWEEN(1,5)) -> P6159 | D20: =INDEX(Table3[RSrc],RANDBETWEEN(1,5)) -> G30 | E20: 45.68
B21: 2010-04-07 | C21: =INDEX(Table3[ChgN],RANDBETWEEN(1,5)) -> W7329 | D21: =INDEX(Table3[RSrc],RANDBETWEEN(1,5)) -> J64 | E21: 46.68
B22: 2010-04-04 | C22: =INDEX(Table3[ChgN],RANDBETWEEN(1,5)) -> V9973 | D22: =INDEX(Table3[RSrc],RANDBETWEEN(1,5)) -> G30 | E22: 63.09
B23: 2010-04-05 | C23: =INDEX(Table3[ChgN],RANDBETWEEN(1,5)) -> V9973 | D23: =INDEX(Table3[RSrc],RANDBETWEEN(1,5)) -> J64 | E23: 93.39
B24: 2010-04-12 | C24: =INDEX(Table3[ChgN],RANDBETWEEN(1,5)) -> V9973 | D24: =INDEX(Table3[RSrc],RANDBETWEEN(1,5)) -> J78 | E24: 17.06
B25: 2010-04-07 | C25: =INDEX(Table3[ChgN],RANDBETWEEN(1,5)) -> D6128 | D25: =INDEX(Table3[RSrc],RANDBETWEEN(1,5)) -> J64 | E25: 93.78
B26: 2010-04-07 | C26: =INDEX(Table3[ChgN],RANDBETWEEN(1,5)) -> V4541 | D26: =INDEX(Table3[RSrc],RANDBETWEEN(1,5)) -> G30 | E26: 47.2
B27: 2010-04-30 | C27: =INDEX(Table3[ChgN],RANDBETWEEN(1,5)) -> P6159 | D27: =INDEX(Table3[RSrc],RANDBETWEEN(1,5)) -> J64 | E27: 31.54
B28: 2010-04-28 | C28: =INDEX(Table3[ChgN],RANDBETWEEN(1,5)) -> W7329 | D28: =INDEX(Table3[RSrc],RANDBETWEEN(1,5)) -> J78 | E28: 42.5
B29: 2010-04-27 | C29: =INDEX(Table3[ChgN],RANDBETWEEN(1,5)) -> V4541 | D29: =INDEX(Table3[RSrc],RANDBETWEEN(1,5)) -> J64 | E29: 44.8
B30: 2010-04-16 | C30: =INDEX(Table3[ChgN],RANDBETWEEN(1,5)) -> D6128 | D30: =INDEX(Table3[RSrc],RANDBETWEEN(1,5)) -> G30 | E30: 36.58
B31: 2010-04-03 | C31: =INDEX(Table3[ChgN],RANDBETWEEN(1,5)) -> V9973 | D31: =INDEX(Table3[RSrc],RANDBETWEEN(1,5)) -> G30 | E31: 95.59
B32: 2010-04-03 | C32: =INDEX(Table3[ChgN],RANDBETWEEN(1,5)) -> W7329 | D32: =INDEX(Table3[RSrc],RANDBETWEEN(1,5)) -> L57 | E32: 21.15
B33: 2010-04-02 | C33: =INDEX(Table3[ChgN],RANDBETWEEN(1,5)) -> V9973 | D33: =INDEX(Table3[RSrc],RANDBETWEEN(1,5)) -> G30 | E33: 84.7
B34: 2010-04-18 | C34: =INDEX(Table3[ChgN],RANDBETWEEN(1,5)) -> V4541 | D34: =INDEX(Table3[RSrc],RANDBETWEEN(1,5)) -> B59 | E34: 46.87
B35: 2010-04-27 | C35: =INDEX(Table3[ChgN],RANDBETWEEN(1,5)) -> D6128 | D35: =INDEX(Table3[RSrc],RANDBETWEEN(1,5)) -> B59 | E35: 73.38
B36: 2010-04-15 | C36: =INDEX(Table3[ChgN],RANDBETWEEN(1,5)) -> W7329 | D36: =INDEX(Table3[RSrc],RANDBETWEEN(1,5)) -> J64 | E36: 61.58
B37: 2010-04-24 | C37: =INDEX(Table3[ChgN],RANDBETWEEN(1,5)) -> W7329 | D37: =INDEX(Table3[RSrc],RANDBETWEEN(1,5)) -> L57 | E37: 55.82
B38: 2010-04-04 | C38: =INDEX(Table3[ChgN],RANDBETWEEN(1,5)) -> V9973 | D38: =INDEX(Table3[RSrc],RANDBETWEEN(1,5)) -> L57 | E38: 87.54
B39: 2010-04-25 | C39: =INDEX(Table3[ChgN],RANDBETWEEN(1,5)) -> W7329 | D39: =INDEX(Table3[RSrc],RANDBETWEEN(1,5)) -> B59 | E39: 86.04
B40: 2010-04-30 | C40: =INDEX(Table3[ChgN],RANDBETWEEN(1,5)) -> P6159 | D40: =INDEX(Table3[RSrc],RANDBETWEEN(1,5)) -> J78 | E40: 76.68
B41: 2010-04-09 | C41: =INDEX(Table3[ChgN],RANDBETWEEN(1,5)) -> P6159 | D41: =INDEX(Table3[RSrc],RANDBETWEEN(1,5)) -> G30 | E41: 91.88
B42: 2010-04-02 | C42: =INDEX(Table3[ChgN],RANDBETWEEN(1,5)) -> W7329 | D42: =INDEX(Table3[RSrc],RANDBETWEEN(1,5)) -> J78 | E42: 89.59
B43: 2010-04-11 | C43: =INDEX(Table3[ChgN],RANDBETWEEN(1,5)) -> P6159 | D43: =INDEX(Table3[RSrc],RANDBETWEEN(1,5)) -> L57 | E43: 22.15
B44: 2010-04-07 | C44: =INDEX(Table3[ChgN],RANDBETWEEN(1,5)) -> V9973 | D44: =INDEX(Table3[RSrc],RANDBETWEEN(1,5)) -> B59 | E44: 98.67
B45: 2010-04-23 | C45: =INDEX(Table3[ChgN],RANDBETWEEN(1,5)) -> V9973 | D45: =INDEX(Table3[RSrc],RANDBETWEEN(1,5)) -> G30 | E45: 92.01
B46: 2010-04-05 | C46: =INDEX(Table3[ChgN],RANDBETWEEN(1,5)) -> D6128 | D46: =INDEX(Table3[RSrc],RANDBETWEEN(1,5)) -> B59 | E46: 20.31
B47: 2010-04-02 | C47: =INDEX(Table3[ChgN],RANDBETWEEN(1,5)) -> W7329 | D47: =INDEX(Table3[RSrc],RANDBETWEEN(1,5)) -> B59 | E47: 77.72
B48: 2010-04-09 | C48: =INDEX(Table3[ChgN],RANDBETWEEN(1,5)) -> V9973 | D48: =INDEX(Table3[RSrc],RANDBETWEEN(1,5)) -> B59 | E48: 42.3
B49: 2010-04-17 | C49: =INDEX(Table3[ChgN],RANDBETWEEN(1,5)) -> W7329 | D49: =INDEX(Table3[RSrc],RANDBETWEEN(1,5)) -> G30 | E49: 70.39
B50: 2010-04-01 | C50: =INDEX(Table3[ChgN],RANDBETWEEN(1,5)) -> D6128 | D50: =INDEX(Table3[RSrc],RANDBETWEEN(1,5)) -> G30 | E50: 76.1
B51: 2010-04-15 | C51: =INDEX(Table3[ChgN],RANDBETWEEN(1,5)) -> W7329 | D51: =INDEX(Table3[RSrc],RANDBETWEEN(1,5)) -> B59 | E51: 46.35
B52: 2010-04-25 | C52: =INDEX(Table3[ChgN],RANDBETWEEN(1,5)) -> V9973 | D52: =INDEX(Table3[RSrc],RANDBETWEEN(1,5)) -> G30 | E52: 40.16

Sheet Compare1
B5: Table4
B6: ChargeN | C6: L57_1 | D6: J64_1 | E6: J78_1 | F6: G30_1 | G6: B59_1 | H6: L57_2 | I6: J64_2 | J6: J78_2 | K6: G30_2 | L6: B59_2 | M6: L57_∆ | N6: J64_∆ | O6: J78_∆ | P6: G30_∆ | Q6: B59_∆
B7: V4541 | C7: =GETPIVOTDATA("Amt",INDIRECT(RIGHT(Table4[#Headers],2)),"ChargeN",[ChargeN],"Resource",LEFT(Table4[#Headers],3)) -> 0 | D7: =GETPIVOTDATA("Amt",INDIRECT(RIGHT(Table4[#Headers],2)),"ChargeN",[ChargeN],"Resource",LEFT(Table4[#Headers],3)) -> 186.36 | E7: =GETPIVOTDATA("Amt",INDIRECT(RIGHT(Table4[#Headers],2)),"ChargeN",[ChargeN],"Resource",LEFT(Table4[#Headers],3)) -> 53.44 | F7: =GETPIVOTDATA("Amt",INDIRECT(RIGHT(Table4[#Headers],2)),"ChargeN",[ChargeN],"Resource",LEFT(Table4[#Headers],3)) -> 204.65 | G7: =GETPIVOTDATA("Amt",INDIRECT(RIGHT(Table4[#Headers],2)),"ChargeN",[ChargeN],"Resource",LEFT(Table4[#Headers],3)) -> 222.68 | H7: =GETPIVOTDATA("Amt",INDIRECT(RIGHT(Table4[#Headers],2)),"ChargeN",[ChargeN],"Resource",LEFT(Table4[#Headers],3)) -> 108.38 | I7: =GETPIVOTDATA("Amt",INDIRECT(RIGHT(Table4[#Headers],2)),"ChargeN",[ChargeN],"Resource",LEFT(Table4[#Headers],3)) -> 88.66 | J7: =GETPIVOTDATA("Amt",INDIRECT(RIGHT(Table4[#Headers],2)),"ChargeN",[ChargeN],"Resource",LEFT(Table4[#Headers],3)) -> 194.02 | K7: =GETPIVOTDATA("Amt",INDIRECT(RIGHT(Table4[#Headers],2)),"ChargeN",[ChargeN],"Resource",LEFT(Table4[#Headers],3)) -> 92.48 | L7: =GETPIVOTDATA("Amt",INDIRECT(RIGHT(Table4[#Headers],2)),"ChargeN",[ChargeN],"Resource",LEFT(Table4[#Headers],3)) -> 119.94 | M7: =INDIRECT("Table4["&LEFT(Table4[#Headers],3)&"_2]")-INDIRECT("Table4["&LEFT(Table4[#Headers],3)&"_1]") -> 108.38 | N7: =INDIRECT("Table4["&LEFT(Table4[#Headers],3)&"_2]")-INDIRECT("Table4["&LEFT(Table4[#Headers],3)&"_1]") -> -97.7 | O7: =INDIRECT("Table4["&LEFT(Table4[#Headers],3)&"_2]")-INDIRECT("Table4["&LEFT(Table4[#Headers],3)&"_1]") -> 140.58 | P7: =INDIRECT("Table4["&LEFT(Table4[#Headers],3)&"_2]")-INDIRECT("Table4["&LEFT(Table4[#Headers],3)&"_1]") -> -112.17 | Q7: =INDIRECT("Table4["&LEFT(Table4[#Headers],3)&"_2]")-INDIRECT("Table4["&LEFT(Table4[#Headers],3)&"_1]") -> -102.74
B8: W7329 | C8: =GETPIVOTDATA("Amt",INDIRECT(RIGHT(Table4[#Headers],2)),"ChargeN",[ChargeN],"Resource",LEFT(Table4[#Headers],3)) -> 134.56 | D8: =GETPIVOTDATA("Amt",INDIRECT(RIGHT(Table4[#Headers],2)),"ChargeN",[ChargeN],"Resource",LEFT(Table4[#Headers],3)) -> 76 | E8: =GETPIVOTDATA("Amt",INDIRECT(RIGHT(Table4[#Headers],2)),"ChargeN",[ChargeN],"Resource",LEFT(Table4[#Headers],3)) -> 75.79 | F8: =GETPIVOTDATA("Amt",INDIRECT(RIGHT(Table4[#Headers],2)),"ChargeN",[ChargeN],"Resource",LEFT(Table4[#Headers],3)) -> 0 | G8: =GETPIVOTDATA("Amt",INDIRECT(RIGHT(Table4[#Headers],2)),"ChargeN",[ChargeN],"Resource",LEFT(Table4[#Headers],3)) -> 94.63 | H8: =GETPIVOTDATA("Amt",INDIRECT(RIGHT(Table4[#Headers],2)),"ChargeN",[ChargeN],"Resource",LEFT(Table4[#Headers],3)) -> 116.73 | I8: =GETPIVOTDATA("Amt",INDIRECT(RIGHT(Table4[#Headers],2)),"ChargeN",[ChargeN],"Resource",LEFT(Table4[#Headers],3)) -> 84.67 | J8: =GETPIVOTDATA("Amt",INDIRECT(RIGHT(Table4[#Headers],2)),"ChargeN",[ChargeN],"Resource",LEFT(Table4[#Headers],3)) -> 91.61 | K8: =GETPIVOTDATA("Amt",INDIRECT(RIGHT(Table4[#Headers],2)),"ChargeN",[ChargeN],"Resource",LEFT(Table4[#Headers],3)) -> 49.09 | L8: =GETPIVOTDATA("Amt",INDIRECT(RIGHT(Table4[#Headers],2)),"ChargeN",[ChargeN],"Resource",LEFT(Table4[#Headers],3)) -> 48.81 | M8: =INDIRECT("Table4["&LEFT(Table4[#Headers],3)&"_2]")-INDIRECT("Table4["&LEFT(Table4[#Headers],3)&"_1]") -> -17.83 | N8: =INDIRECT("Table4["&LEFT(Table4[#Headers],3)&"_2]")-INDIRECT("Table4["&LEFT(Table4[#Headers],3)&"_1]") -> 8.67 | O8: =INDIRECT("Table4["&LEFT(Table4[#Headers],3)&"_2]")-INDIRECT("Table4["&LEFT(Table4[#Headers],3)&"_1]") -> 15.82 | P8: =INDIRECT("Table4["&LEFT(Table4[#Headers],3)&"_2]")-INDIRECT("Table4["&LEFT(Table4[#Headers],3)&"_1]") -> 49.09 | Q8: =INDIRECT("Table4["&LEFT(Table4[#Headers],3)&"_2]")-INDIRECT("Table4["&LEFT(Table4[#Headers],3)&"_1]") -> -45.82
B9: D6128 | C9: =GETPIVOTDATA("Amt",INDIRECT(RIGHT(Table4[#Headers],2)),"ChargeN",[ChargeN],"Resource",LEFT(Table4[#Headers],3)) -> 176.48 | D9: =GETPIVOTDATA("Amt",INDIRECT(RIGHT(Table4[#Headers],2)),"ChargeN",[ChargeN],"Resource",LEFT(Table4[#Headers],3)) -> 35.02 | E9: =GETPIVOTDATA("Amt",INDIRECT(RIGHT(Table4[#Headers],2)),"ChargeN",[ChargeN],"Resource",LEFT(Table4[#Headers],3)) -> 0 | F9: =GETPIVOTDATA("Amt",INDIRECT(RIGHT(Table4[#Headers],2)),"ChargeN",[ChargeN],"Resource",LEFT(Table4[#Headers],3)) -> 83.68 | G9: =GETPIVOTDATA("Amt",INDIRECT(RIGHT(Table4[#Headers],2)),"ChargeN",[ChargeN],"Resource",LEFT(Table4[#Headers],3)) -> 0 | H9: =GETPIVOTDATA("Amt",INDIRECT(RIGHT(Table4[#Headers],2)),"ChargeN",[ChargeN],"Resource",LEFT(Table4[#Headers],3)) -> 287.9 | I9: =GETPIVOTDATA("Amt",INDIRECT(RIGHT(Table4[#Headers],2)),"ChargeN",[ChargeN],"Resource",LEFT(Table4[#Headers],3)) -> 0 | J9: =GETPIVOTDATA("Amt",INDIRECT(RIGHT(Table4[#Headers],2)),"ChargeN",[ChargeN],"Resource",LEFT(Table4[#Headers],3)) -> 144.57 | K9: =GETPIVOTDATA("Amt",INDIRECT(RIGHT(Table4[#Headers],2)),"ChargeN",[ChargeN],"Resource",LEFT(Table4[#Headers],3)) -> 19.19 | L9: =GETPIVOTDATA("Amt",INDIRECT(RIGHT(Table4[#Headers],2)),"ChargeN",[ChargeN],"Resource",LEFT(Table4[#Headers],3)) -> 12.33 | M9: =INDIRECT("Table4["&LEFT(Table4[#Headers],3)&"_2]")-INDIRECT("Table4["&LEFT(Table4[#Headers],3)&"_1]") -> 111.42 | N9: =INDIRECT("Table4["&LEFT(Table4[#Headers],3)&"_2]")-INDIRECT("Table4["&LEFT(Table4[#Headers],3)&"_1]") -> -35.02 | O9: =INDIRECT("Table4["&LEFT(Table4[#Headers],3)&"_2]")-INDIRECT("Table4["&LEFT(Table4[#Headers],3)&"_1]") -> 144.57 | P9: =INDIRECT("Table4["&LEFT(Table4[#Headers],3)&"_2]")-INDIRECT("Table4["&LEFT(Table4[#Headers],3)&"_1]") -> -64.49 | Q9: =INDIRECT("Table4["&LEFT(Table4[#Headers],3)&"_2]")-INDIRECT("Table4["&LEFT(Table4[#Headers],3)&"_1]") -> 12.33
B10: P6159 | C10: =GETPIVOTDATA("Amt",INDIRECT(RIGHT(Table4[#Headers],2)),"ChargeN",[ChargeN],"Resource",LEFT(Table4[#Headers],3)) -> 0 | D10: =GETPIVOTDATA("Amt",INDIRECT(RIGHT(Table4[#Headers],2)),"ChargeN",[ChargeN],"Resource",LEFT(Table4[#Headers],3)) -> 143.56 | E10: =GETPIVOTDATA("Amt",INDIRECT(RIGHT(Table4[#Headers],2)),"ChargeN",[ChargeN],"Resource",LEFT(Table4[#Headers],3)) -> 164.71 | F10: =GETPIVOTDATA("Amt",INDIRECT(RIGHT(Table4[#Headers],2)),"ChargeN",[ChargeN],"Resource",LEFT(Table4[#Headers],3)) -> 212.62 | G10: =GETPIVOTDATA("Amt",INDIRECT(RIGHT(Table4[#Headers],2)),"ChargeN",[ChargeN],"Resource",LEFT(Table4[#Headers],3)) -> 131.69 | H10: =GETPIVOTDATA("Amt",INDIRECT(RIGHT(Table4[#Headers],2)),"ChargeN",[ChargeN],"Resource",LEFT(Table4[#Headers],3)) -> 43.38 | I10: =GETPIVOTDATA("Amt",INDIRECT(RIGHT(Table4[#Headers],2)),"ChargeN",[ChargeN],"Resource",LEFT(Table4[#Headers],3)) -> 220.65 | J10: =GETPIVOTDATA("Amt",INDIRECT(RIGHT(Table4[#Headers],2)),"ChargeN",[ChargeN],"Resource",LEFT(Table4[#Headers],3)) -> 0 | K10: =GETPIVOTDATA("Amt",INDIRECT(RIGHT(Table4[#Headers],2)),"ChargeN",[ChargeN],"Resource",LEFT(Table4[#Headers],3)) -> 211.61 | L10: =GETPIVOTDATA("Amt",INDIRECT(RIGHT(Table4[#Headers],2)),"ChargeN",[ChargeN],"Resource",LEFT(Table4[#Headers],3)) -> 147.33 | M10: =INDIRECT("Table4["&LEFT(Table4[#Headers],3)&"_2]")-INDIRECT("Table4["&LEFT(Table4[#Headers],3)&"_1]") -> 43.38 | N10: =INDIRECT("Table4["&LEFT(Table4[#Headers],3)&"_2]")-INDIRECT("Table4["&LEFT(Table4[#Headers],3)&"_1]") -> 77.09 | O10: =INDIRECT("Table4["&LEFT(Table4[#Headers],3)&"_2]")-INDIRECT("Table4["&LEFT(Table4[#Headers],3)&"_1]") -> -164.71 | P10: =INDIRECT("Table4["&LEFT(Table4[#Headers],3)&"_2]")-INDIRECT("Table4["&LEFT(Table4[#Headers],3)&"_1]") -> -1.01 | Q10: =INDIRECT("Table4["&LEFT(Table4[#Headers],3)&"_2]")-INDIRECT("Table4["&LEFT(Table4[#Headers],3)&"_1]") -> 15.64
B11: V9973 | C11: =GETPIVOTDATA("Amt",INDIRECT(RIGHT(Table4[#Headers],2)),"ChargeN",[ChargeN],"Resource",LEFT(Table4[#Headers],3)) -> 13.27 | D11: =GETPIVOTDATA("Amt",INDIRECT(RIGHT(Table4[#Headers],2)),"ChargeN",[ChargeN],"Resource",LEFT(Table4[#Headers],3)) -> 271.43 | E11: =GETPIVOTDATA("Amt",INDIRECT(RIGHT(Table4[#Headers],2)),"ChargeN",[ChargeN],"Resource",LEFT(Table4[#Headers],3)) -> 186.17 | F11: =GETPIVOTDATA("Amt",INDIRECT(RIGHT(Table4[#Headers],2)),"ChargeN",[ChargeN],"Resource",LEFT(Table4[#Headers],3)) -> 95.61 | G11: =GETPIVOTDATA("Amt",INDIRECT(RIGHT(Table4[#Headers],2)),"ChargeN",[ChargeN],"Resource",LEFT(Table4[#Headers],3)) -> 63.51 | H11: =GETPIVOTDATA("Amt",INDIRECT(RIGHT(Table4[#Headers],2)),"ChargeN",[ChargeN],"Resource",LEFT(Table4[#Headers],3)) -> 92.3 | I11: =GETPIVOTDATA("Amt",INDIRECT(RIGHT(Table4[#Headers],2)),"ChargeN",[ChargeN],"Resource",LEFT(Table4[#Headers],3)) -> 306.48 | J11: =GETPIVOTDATA("Amt",INDIRECT(RIGHT(Table4[#Headers],2)),"ChargeN",[ChargeN],"Resource",LEFT(Table4[#Headers],3)) -> 38.4 | K11: =GETPIVOTDATA("Amt",INDIRECT(RIGHT(Table4[#Headers],2)),"ChargeN",[ChargeN],"Resource",LEFT(Table4[#Headers],3)) -> 0 | L11: =GETPIVOTDATA("Amt",INDIRECT(RIGHT(Table4[#Headers],2)),"ChargeN",[ChargeN],"Resource",LEFT(Table4[#Headers],3)) -> 109.37 | M11: =INDIRECT("Table4["&LEFT(Table4[#Headers],3)&"_2]")-INDIRECT("Table4["&LEFT(Table4[#Headers],3)&"_1]") -> 79.03 | N11: =INDIRECT("Table4["&LEFT(Table4[#Headers],3)&"_2]")-INDIRECT("Table4["&LEFT(Table4[#Headers],3)&"_1]") -> 35.05 | O11: =INDIRECT("Table4["&LEFT(Table4[#Headers],3)&"_2]")-INDIRECT("Table4["&LEFT(Table4[#Headers],3)&"_1]") -> -147.77 | P11: =INDIRECT("Table4["&LEFT(Table4[#Headers],3)&"_2]")-INDIRECT("Table4["&LEFT(Table4[#Headers],3)&"_1]") -> -95.61 | Q11: =INDIRECT("Table4["&LEFT(Table4[#Headers],3)&"_2]")-INDIRECT("Table4["&LEFT(Table4[#Headers],3)&"_1]") -> 45.86

Sheet Compare2
B3: Table5 | G3: PivotTable3
B4: DDate | C4: ChargeN | D4: Resource | E4: Amt | I4: Values | J4: DDate
B5: 2010-03-19 | C5: V4541 | D5: L57 | E5: 71.67 | I5: _Amt | K5: Amt_∆ | M5: Pct_∆
B6: 2010-03-20 | C6: V4541 | D6: G30 | E6: 36.39 | G6: ChargeN | H6: Resource | I6: Mar | J6: Apr | K6: Mar | L6: Apr | M6: Mar | N6: Apr
B7: 2010-03-10 | C7: W7329 | D7: B59 | E7: 41.46 | G7: D6128 | I7: 781.2 | J7: 443.52 | L7: -337.68 | N7: -0.4322580645
B8: 2010-03-09 | C8: D6128 | D8: G30 | E8: 65.11 | H8: B59 | I8: 112.06 | J8: 63.66 | L8: -48.4 | N8: -0.431911476
B9: 2010-03-15 | C9: V4541 | D9: G30 | E9: 98.84 | H9: G30 | I9: 254.76 | J9: 165.17 | L9: -89.59 | N9: -0.3516643115
B10: 2010-03-07 | C10: V9973 | D10: G30 | E10: 66.26 | H10: J64 | I10: 188.41 | J10: 34.61 | L10: -153.8 | N10: -0.816304867
B11: 2010-03-24 | C11: V4541 | D11: B59 | E11: 26.9 | H11: J78 | I11: 132.31 | J11: 114.59 | L11: -17.72 | N11: -0.1339278966
B12: 2010-03-13 | C12: W7329 | D12: J64 | E12: 75.85 | H12: L57 | I12: 93.66 | J12: 65.49 | L12: -28.17 | N12: -0.300768738
B13: 2010-03-17 | C13: V4541 | D13: J64 | E13: 22.19 | G13: P6159 | I13: 377.66 | J13: 534.52 | L13: 156.86 | N13: 0.4153471376
B14: 2010-03-27 | C14: D6128 | D14: B59 | E14: 33.91 | H14: B59 | I14: 0 | J14: 157.8 | L14: 157.8
B15: 2010-03-12 | C15: D6128 | D15: J78 | E15: 41.2 | H15: G30 | I15: 377.66 | J15: 154.88 | L15: -222.78 | N15: -0.5898956734
B16: 2010-03-12 | C16: V9973 | D16: B59 | E16: 99.88 | H16: J64 | I16: 0 | J16: 72.24 | L16: 72.24
B17: 2010-03-08 | C17: V9973 | D17: J78 | E17: 57.26 | H17: J78 | I17: 0 | J17: 82.62 | L17: 82.62
B18: 2010-03-19 | C18: W7329 | D18: J64 | E18: 23.77 | H18: L57 | I18: 0 | J18: 66.98 | L18: 66.98
B19: 2010-03-25 | C19: D6128 | D19: J64 | E19: 92.23 | G19: V4541 | I19: 612.3 | J19: 665.77 | L19: 53.47 | N19: 0.08732647395
B20: 2010-03-21 | C20: D6128 | D20: B59 | E20: 37.44 | H20: B59 | I20: 26.9 | J20: 81.72 | L20: 54.82 | N20: 2.037918216
B21: 2010-03-20 | C21: V4541 | D21: J64 | E21: 23.26 | H21: G30 | I21: 276.44 | J21: 290.11 | L21: 13.67 | N21: 0.04945015193
B22: 2010-03-26 | C22: P6159 | D22: G30 | E22: 23.2 | H22: J64 | I22: 192.97 | J22: 159.84 | L22: -33.13 | N22: -0.1716847178
B23: 2010-03-23 | C23: D6128 | D23: B59 | E23: 40.71 | H23: J78 | I23: 44.32 | J23: 40.2 | L23: -4.12 | N23: -0.09296028881
B24: 2010-03-04 | C24: W7329 | D24: B59 | E24: 55.51 | H24: L57 | I24: 71.67 | J24: 93.9 | L24: 22.23 | N24: 0.3101716199
B25: 2010-03-12 | C25: V4541 | D25: G30 | E25: 12.67 | G25: V9973 | I25: 437.55 | J25: 369.21 | L25: -68.34 | N25: -0.1561878642
B26: 2010-03-31 | C26: V4541 | D26: J78 | E26: 18.15 | H26: B59 | I26: 99.88 | J26: 103.1 | L26: 3.22 | N26: 0.03223868642
B27: 2010-03-26 | C27: W7329 | D27: B59 | E27: 65.56 | H27: G30 | I27: 153.95 | J27: 18.74 | L27: -135.21 | N27: -0.8782721663
B28: 2010-03-16 | C28: P6159 | D28: G30 | E28: 38.42 | H28: J64 | I28: 36.65 | J28: 75.37 | L28: 38.72 | N28: 1.056480218
B29: 2010-03-22 | C29: V9973 | D29: G30 | E29: 87.69 | H29: J78 | I29: 147.07 | J29: 83.75 | L29: -63.32 | N29: -0.4305432787
B30: 2010-03-27 | C30: D6128 | D30: J78 | E30: 91.11 | H30: L57 | I30: 0 | J30: 88.25 | L30: 88.25
B31: 2010-03-18 | C31: W7329 | D31: G30 | E31: 90.53 | G31: W7329 | I31: 592.01 | J31: 694.39 | L31: 102.38 | N31: 0.172936268
B32: 2010-03-04 | C32: D6128 | D32: G30 | E32: 41.07 | H32: B59 | I32: 202.58 | J32: 179.96 | L32: -22.62 | N32: -0.1116595913
B33: 2010-03-13 | C33: P6159 | D33: G30 | E33: 83.87 | H33: G30 | I33: 190.43 | J33: 143.09 | L33: -47.34 | N33: -0.2485952844
B34: 2010-03-02 | C34: W7329 | D34: J64 | E34: 30.13 | H34: J64 | I34: 129.75 | J34: 98.43 | L34: -31.32 | N34: -0.2413872832
B35: 2010-03-15 | C35: V9973 | D35: J78 | E35: 89.81 | H35: J78 | I35: 69.25 | J35: 0 | L35: -69.25 | N35: -1
B36: 2010-03-08 | C36: P6159 | D36: G30 | E36: 21.02 | H36: L57 | I36: 0 | J36: 272.91 | L36: 272.91
B37: 2010-03-10 | C37: D6128 | D37: J64 | E37: 96.18 | G37: Grand Total | I37: 2800.72 | J37: 2707.41 | L37: -93.31 | N37: -0.03331643292
B38: 2010-03-03 | C38: W7329 | D38: B59 | E38: 40.05
B39: 2010-03-17 | C39: D6128 | D39: G30 | E39: 64.8
B40: 2010-03-17 | C40: P6159 | D40: G30 | E40: 72.94
B41: 2010-03-20 | C41: V4541 | D41: G30 | E41: 75.85
B42: 2010-03-14 | C42: P6159 | D42: G30 | E42: 40.34
B43: 2010-03-22 | C43: D6128 | D43: G30 | E43: 83.78
B44: 2010-03-30 | C44: W7329 | D44: J78 | E44: 69.25
B45: 2010-03-14 | C45: V4541 | D45: G30 | E45: 52.69
B46: 2010-03-20 | C46: V4541 | D46: J64 | E46: 71.9
B47: 2010-03-12 | C47: V4541 | D47: J64 | E47: 75.62
B48: 2010-03-13 | C48: P6159 | D48: G30 | E48: 97.87
B49: 2010-03-18 | C49: V9973 | D49: J64 | E49: 36.65
B50: 2010-03-15 | C50: V4541 | D50: J78 | E50: 26.17
B51: 2010-03-22 | C51: D6128 | D51: L57 | E51: 93.66
B52: 2010-03-04 | C52: W7329 | D52: G30 | E52: 99.9
B53: 2010-04-02 | C53: W7329 | D53: L57 | E53: 95.59
B54: 2010-04-30 | C54: V4541 | D54: J64 | E54: 74.12
B55: 2010-04-08 | C55: D6128 | D55: J78 | E55: 35.73
B56: 2010-04-09 | C56: V9973 | D56: J78 | E56: 37.24
B57: 2010-04-14 | C57: P6159 | D57: B59 | E57: 31.4
B58: 2010-04-20 | C58: W7329 | D58: J64 | E58: 30.86
B59: 2010-04-16 | C59: W7329 | D59: B59 | E59: 90.79
B60: 2010-04-12 | C60: P6159 | D60: B59 | E60: 56.09
B61: 2010-04-04 | C61: D6128 | D61: G30 | E61: 66.01
B62: 2010-04-10 | C62: D6128 | D62: B59 | E62: 63.66
B63: 2010-04-02 | C63: W7329 | D63: B59 | E63: 89.17
B64: 2010-04-13 | C64: V4541 | D64: G30 | E64: 22.37
B65: 2010-04-16 | C65: D6128 | D65: L57 | E65: 53.2
B66: 2010-04-17 | C66: W7329 | D66: J64 | E66: 44.13
B67: 2010-04-25 | C67: W7329 | D67: L57 | E67: 20.03
B68: 2010-04-02 | C68: V4541 | D68: G30 | E68: 89.52
B69: 2010-04-17 | C69: V4541 | D69: G30 | E69: 13.85
B70: 2010-04-14 | C70: P6159 | D70: B59 | E70: 70.31
B71: 2010-04-14 | C71: V9973 | D71: J64 | E71: 75.37
B72: 2010-04-18 | C72: P6159 | D72: L57 | E72: 11.84
B73: 2010-04-22 | C73: W7329 | D73: G30 | E73: 92.8
B74: 2010-04-24 | C74: V4541 | D74: J64 | E74: 42.46
B75: 2010-04-10 | C75: V9973 | D75: J78 | E75: 46.51
B76: 2010-04-27 | C76: W7329 | D76: J64 | E76: 23.44
B77: 2010-04-08 | C77: D6128 | D77: G30 | E77: 99.16
B78: 2010-04-07 | C78: V9973 | D78: G30 | E78: 18.74
B79: 2010-04-15 | C79: P6159 | D79: G30 | E79: 90.83
B80: 2010-04-17 | C80: V4541 | D80: G30 | E80: 97.76
B81: 2010-04-18 | C81: V9973 | D81: B59 | E81: 50.51
B82: 2010-04-11 | C82: D6128 | D82: J78 | E82: 45.55
B83: 2010-04-10 | C83: V4541 | D83: B59 | E83: 81.72
B84: 2010-04-12 | C84: P6159 | D84: G30 | E84: 13.44
B85: 2010-04-15 | C85: V4541 | D85: J64 | E85: 43.26
B86: 2010-04-15 | C86: V9973 | D86: L57 | E86: 88.25
B87: 2010-04-03 | C87: P6159 | D87: G30 | E87: 50.61
B88: 2010-04-14 | C88: V9973 | D88: B59 | E88: 52.59
B89: 2010-04-18 | C89: W7329 | D89: L57 | E89: 78.78
B90: 2010-04-26 | C90: D6128 | D90: L57 | E90: 12.29
B91: 2010-04-04 | C91: W7329 | D91: L57 | E91: 78.51
B92: 2010-04-08 | C92: V4541 | D92: L57 | E92: 93.9
B93: 2010-04-30 | C93: D6128 | D93: J64 | E93: 34.61
B94: 2010-04-15 | C94: P6159 | D94: J64 | E94: 72.24
B95: 2010-04-26 | C95: D6128 | D95: J78 | E95: 33.31
B96: 2010-04-14 | C96: V4541 | D96: G30 | E96: 66.61
B97: 2010-04-06 | C97: P6159 | D97: L57 | E97: 55.14
B98: 2010-04-09 | C98: P6159 | D98: J78 | E98: 82.62
B99: 2010-04-30 | C99: W7329 | D99: G30 | E99: 50.29
B100: 2010-04-25 | C100: V4541 | D100: J78 | E100: 40.2

Sheet Compare3
B2: DDate | C2: Mar | F2: DDate | G2: Apr
B3: PivotTable4 | F3: PivotTable5 | J3: Table7
B4: ChargeN | C4: Resource | D4: _ Amt | F4: ChargeN | G4: Resource | H4: _ Amt | J4: Amt_∆
B5: D6128 | C5: B59 | D5: 0 | F5: D6128 | G5: B59 | H5: 12.33 | J5: =H5-D5 -> 12.33
C6: G30 | D6: 83.68 | G6: G30 | H6: 19.19 | J6: -64.49
C7: J64 | D7: 35.02 | G7: J64 | H7: 0 | J7: -35.02
C8: J78 | D8: 0 | G8: J78 | H8: 144.57 | J8: 144.57 | L8: Not_a_Table
C9: L57 | D9: 176.48 | G9: L57 | H9: 287.9 | J9: 111.42 | L9: Amt_∆
B10: P6159 | C10: B59 | D10: 131.69 | F10: P6159 | G10: B59 | H10: 147.33 | J10: 15.64 | L10: =GETPIVOTDATA("Amt",_5T,"ChargeN",INDEX(_5T,rown,1),"Resource",INDEX(_5T,rowd+1,2))-GETPIVOTDATA("Amt",_4T,"ChargeN",INDEX(_4T,rown,1),"Resource",INDEX(_4T,rowd+1,2)) -> 12.33
C11: G30 | D11: 212.62 | G11: G30 | H11: 211.61 | J11: -1.01 | L11: -64.49
C12: J64 | D12: 143.56 | G12: J64 | H12: 220.65 | J12: 77.09 | L12: -35.02
C13: J78 | D13: 164.71 | G13: J78 | H13: 0 | J13: -164.71 | L13: 144.57
C14: L57 | D14: 0 | G14: L57 | H14: 43.38 | J14: 43.38 | L14: 111.42
B15: V4541 | C15: B59 | D15: 222.68 | F15: V4541 | G15: B59 | H15: 119.94 | J15: -102.74 | L15: 15.64
C16: G30 | D16: 204.65 | G16: G30 | H16: 92.48 | J16: -112.17 | L16: -1.01
C17: J64 | D17: 186.36 | G17: J64 | H17: 88.66 | J17: -97.7 | L17: 77.09
C18: J78 | D18: 53.44 | G18: J78 | H18: 194.02 | J18: 140.58 | L18: -164.71
C19: L57 | D19: 0 | G19: L57 | H19: 108.38 | J19: 108.38 | L19: 43.38
B20: V9973 | C20: B59 | D20: 63.51 | F20: V9973 | G20: B59 | H20: 109.37 | J20: 45.86 | L20: -102.74
C21: G30 | D21: 95.61 | G21: G30 | H21: 0 | J21: -95.61 | L21: -112.17
C22: J64 | D22: 271.43 | G22: J64 | H22: 306.48 | J22: 35.05 | L22: -97.7
C23: J78 | D23: 186.17 | G23: J78 | H23: 38.4 | J23: -147.77 | L23: 140.58
C24: L57 | D24: 13.27 | G24: L57 | H24: 92.3 | J24: 79.03 | L24: 108.38
B25: W7329 | C25: B59 | D25: 94.63 | F25: W7329 | G25: B59 | H25: 48.81 | J25: -45.82 | L25: 45.86
C26: G30 | D26: 0 | G26: G30 | H26: 49.09 | J26: 49.09 | L26: -95.61
C27: J64 | D27: 76 | G27: J64 | H27: 84.67 | J27: 8.67 | L27: 35.05
C28: J78 | D28: 75.79 | G28: J78 | H28: 91.61 | J28: 15.82 | L28: -147.77
C29: L57 | D29: 134.56 | G29: L57 | H29: 116.73 | J29: -17.83 | L29: 79.03
L30: -45.82
L31: 49.09
L32: 8.67
L33: 15.82
L34: -17.83
